[Event "FIDE WCCC Open-08 2024"]
[Site "Montesilvano"]
[Date "2024.11.25"]
[Round "10.40"]
[White "Khantulga, Tuvshinbayar"]
[Black "Lau, Great Boyou"]
[Result "0-1"]
[Annotator "NA RC"]
[ECO "B33"]
[WhiteElo "1611"]
[BlackElo "1514"]
[PlyCount "79"]
[EventDate "2024.11.18"]
[EventType "swiss"]
[EventCountry "ITA"]
[SourceTitle "playchess.com"]
[Source "ChessBase"]
[SourceQuality "1"]
[TimeControl "5400+30"]

1. e4 {[%emt 0:00:03]} c5 {[%emt 0:00:07]} 2. Nf3 {[%emt 0:00:06]} Nc6 {[%emt 0:00:06]} 3. d4 {[%emt 0:00:03]} cxd4 {[%emt 0:00:06]} 4. Nxd4 {[%emt 0:00:10]} Nf6 {[%emt 0:00:17]} 5. Nc3 {[%emt 0:00:08]} e5 {[%emt 0:00:10]} 6. Ndb5 {[%emt 0:00:04]} d6 {[%emt 0:00:08]} 7. Bg5 {[%emt 0:00:06]} a6 {[%emt 0:00:12]} 8. Na3 {[%emt 0:00:05]} b5 {[%emt 0:00:46]} 9. Nd5 {[%emt 0:00:10]} Be7 {[%emt 0:00:07]} 10. Bxf6 {[%emt 0:00:16]} Bxf6 {[%emt 0:00:07]} 11. c4 {[%emt 0:00:06]} b4 {[%emt 0:01:30]} 12. Nc2 {[%emt 0:00:08]} a5 {[%emt 0:00:50]} 13. g3 {[%emt 0:00:09]} O-O {[%emt 0:00:49]} 14. Bg2 {[%emt 0:00:08]} Bd7 {[%emt 0:07:35]} 15. Nxf6+ {[%emt 0:01:09]} Qxf6 {[%emt 0:00:14]} 16. c5 {[%emt 0:00:03]} Nd4 {[%emt 0:07:34]} 17. cxd6 {[%emt 0:01:09]} Bg4 {[%emt 0:12:51]} 18. Qd2 {[%emt 0:02:35]} Bf3 {[%emt 0:15:15]} 19. Nxd4 {[%emt 0:00:50]} Bxg2 {[%emt 0:00:15]} 20. Rg1 {[%emt 0:00:32]} Bxe4 {[%emt 0:00:46]} 21. Nb5 {[%emt 0:01:40]} Bc6 {[%emt 0:01:50]} 22. Nc7 {[%emt 0:00:52]} Rad8 {[%emt 0:05:19]} 23. Rd1 {[%emt 0:01:43]} Bf3 {[%emt 0:05:08]} 24. Rc1 {[%emt 0:01:08]} Rxd6 {[%emt 0:01:12]} 25. Qc2 {[%emt 0:00:36]} Rfd8 {[%emt 0:00:39]} 26. Nb5 {[%emt 0:01:48]} Rd1+ {[%emt 0:00:43]} 27. Rxd1 {[%emt 0:00:22]} Rxd1+ {[%emt 0:01:46]} 28. Qxd1 {[%emt 0:00:05]} Bxd1 {[%emt 0:00:07]} 29. Kxd1 {[%emt 0:00:03]} Qb6 {[%emt 0:01:02]} 30. Kc1 {[%emt 0:00:30]} Qxb5 {[%emt 0:00:15]} 31. Rd1 {[%emt 0:00:17]} f5 {[%emt 0:00:18]} 32. f3 {[%emt 0:00:23]} Qc6+ {[%emt 0:00:11]} 33. Kb1 {[%emt 0:00:31]} Qxf3 {[%emt 0:00:15]} 34. Rc1 {[%emt 0:00:10]} e4 {[%emt 0:00:14]} 35. g4 {[%emt 0:00:16]} Qd3+ {[%emt 0:00:09]} 36. Ka1 {[%emt 0:00:11]} e3 {[%emt 0:00:38]} 37. g5 {[%emt 0:00:11]} e2 {[%emt 0:00:13]} 38. g6 {[%emt 0:00:13]} Qd1 {[%emt 0:00:29]} 39. gxh7+ {[%emt 0:00:30]} Kh8 {[%emt 0:00:29]} 40. Rb1 {[%emt 0:00:06]} 0-1

[Event "FIDE WCCC Open-08 2024"]
[Site "Montesilvano"]
[Date "2024.11.25"]
[Round "10.41"]
[White "Thomas, Robert K"]
[Black "Tuguldur, Baatarchuluun"]
[Result "0-1"]
[Annotator "RC"]
[ECO "C10"]
[WhiteElo "2166"]
[BlackElo "1590"]
[PlyCount "118"]
[EventDate "2024.11.18"]
[EventType "swiss"]
[EventCountry "ITA"]
[SourceTitle "playchess.com"]
[Source "ChessBase"]
[SourceQuality "1"]
[TimeControl "5400+30"]

1. e4 {[%emt 0:00:01]} e6 {[%emt 0:00:14]} 2. d4 {[%emt 0:00:03]} d5 {[%emt 0:01:32]} 3. Nc3 {[%emt 0:00:07]} dxe4 {[%emt 0:01:33]} 4. Nxe4 {[%emt 0:00:43]} Nd7 {[%emt 0:00:55]} 5. Nf3 {[%emt 0:00:49]} Ngf6 {[%emt 0:01:49]} 6. Nxf6+ {[%emt 0:02:18]} Nxf6 {[%emt 0:00:31]} 7. Bd3 {[%emt 0:00:18]} c5 {[%emt 0:00:17]} 8. Be3 {[%emt 0:02:42]} Nd5 {[%emt 0:00:34]} 9. O-O {[%emt 0:03:34]} Be7 {[%emt 0:00:46]} 10. dxc5 {[%emt 0:00:37]} Nxe3 {[%emt 0:00:17]} 11. Bb5+ {[%emt 0:01:48]} Bd7 {[%emt 0:00:39]} 12. Qxd7+ {[%emt 0:01:42]} Qxd7 {[%emt 0:00:25]} 13. Bxd7+ {[%emt 0:00:04]} Kxd7 {[%emt 0:00:06]} 14. fxe3 {[%emt 0:00:06]} Bxc5 {[%emt 0:00:05]} 15. Ne5+ {[%emt 0:00:43]} Ke8 {[%emt 0:00:29]} 16. Kh1 {[%emt 0:03:55]} f6 {[%emt 0:01:39]} 17. Nd3 {[%emt 0:02:45]} Rc8 {[%emt 0:03:11]} 18. e4 {[%emt 0:05:34]} Bd6 {[%emt 0:00:30]} 19. c3 {[%emt 0:01:00]} Ke7 {[%emt 0:02:46]} 20. Rae1 {[%emt 0:01:11]} Rhf8 {[%emt 0:01:15]} 21. g3 {[%emt 0:02:29]} Rcd8 {[%emt 0:01:35]} 22. Rd1 {[%emt 0:07:21]} g5 {[%emt 0:02:37]} 23. b4 {[%emt 0:01:11]} Rc8 {[%emt 0:07:12]} 24. Rc1 {[%emt 0:07:27]} Rc4 {[%emt 0:00:19]} 25. Nf2 {[%emt 0:01:33]} Rfc8 {[%emt 0:00:26]} 26. Ng4 {[%emt 0:01:21]} Be5 {[%emt 0:00:52]} 27. Nxe5 {[%emt 0:07:28]} fxe5 {[%emt 0:00:08]} 28. Rf3 {[%emt 0:00:53]} Rxe4 {[%emt 0:00:28]} 29. Rcf1 {[%emt 0:00:12]} Kd6 {[%emt 0:03:28]} 30. Rf7 {[%emt 0:00:22]} Rxc3 {[%emt 0:00:23]} 31. Rxb7 {[%emt 0:00:14]} Rc7 {[%emt 0:00:36]} 32. Rxc7 {[%emt 0:02:14]} Kxc7 {[%emt 0:00:06]} 33. a3 {[%emt 0:44:15]} a5 {[%emt 0:06:43]} 34. bxa5 {[%emt 0:00:00]} Ra4 {[%emt 0:00:06]} 35. Rf7+ {[%emt 0:00:00]} Kd6 {[%emt 0:00:23]} 36. Ra7 {[%emt 0:00:00]} Rxa3 {[%emt 0:00:39]} 37. a6 {[%emt 0:00:00]} e4 {[%emt 1:03:26]} 38. Ra8 {[%emt 0:00:00]} Ra2 {[%emt 0:00:00]} 39. a7 {[%emt 0:00:00]} Ke5 {[%emt 0:00:00]} 40. Kg1 {[%emt 0:00:00]} e3 {[%emt 0:00:00]} 41. Kf1 {[%emt 0:00:00]} Ke4 {[%emt 0:00:00]} 42. h3 {[%emt 0:00:00]} h5 {[%emt 0:00:00]} 43. g4 {[%emt 0:00:00]} hxg4 {[%emt 0:00:00]} 44. hxg4 {[%emt 0:00:00]} Rf2+ {[%emt 0:00:00]} 45. Ke1 {[%emt 0:00:00]} Rf7 {[%emt 0:00:00]} 46. Ke2 {[%emt 0:00:00]} e5 {[%emt 0:00:00]} 47. Ke1 {[%emt 0:00:00]} Kf3 {[%emt 0:00:00]} 48. Rb8 {[%emt 0:00:00]} Rxa7 {[%emt 0:00:00]} 49. Rf8+ {[%emt 0:00:00]} Kxg4 {[%emt 0:00:00]} 50. Ke2 {[%emt 0:00:00]} Ra3 {[%emt 0:00:00]} 51. Re8 {[%emt 0:00:00]} Kf4 {[%emt 0:00:00]} 52. Rf8+ {[%emt 0:00:00]} Ke4 {[%emt 0:00:00]} 53. Rg8 {[%emt 0:00:00]} Ra2+ {[%emt 0:00:00]} 54. Ke1 {[%emt 0:00:00]} Kf4 {[%emt 0:00:00]} 55. Rf8+ {[%emt 0:00:00]} Kg3 {[%emt 0:00:00]} 56. Rg8 {[%emt 0:00:00]} g4 {[%emt 0:00:00]} 57. Re8 {[%emt 0:00:00]} e4 {[%emt 0:00:00]} 58. Rxe4 {[%emt 0:00:00]} Kf3 {[%emt 0:00:00]} 59. Re8 {[%emt 0:00:00]} Ra1# {[%emt 0:00:00]} 0-1

[Event "FIDE WCCC Open-08 2024"]
[Site "Montesilvano"]
[Date "2024.11.25"]
[Round "10.42"]
[White "Kim, Rian B"]
[Black "Bakirli, Matin"]
[Result "1/2-1/2"]
[Annotator "NA RC"]
[ECO "B48"]
[WhiteElo "1452"]
[BlackElo "1578"]
[PlyCount "73"]
[EventDate "2024.11.18"]
[EventType "swiss"]
[EventCountry "ITA"]
[SourceTitle "playchess.com"]
[Source "ChessBase"]
[SourceQuality "1"]
[TimeControl "5400+30"]

1. e4 {[%emt 0:00:29]} c5 {[%emt 0:00:06]} 2. Nf3 {[%emt 0:00:19]} e6 {[%emt 0:00:24]} 3. d4 {[%emt 0:00:41]} cxd4 {[%emt 0:00:30]} 4. Nxd4 {[%emt 0:00:13]} a6 {[%emt 0:00:29]} 5. Be3 {[%emt 0:01:10]} Qc7 {[%emt 0:00:32]} 6. Nc3 {[%emt 0:00:50]} Nf6 {[%emt 0:01:05]} 7. Qd2 {[%emt 0:00:48]} Nc6 {[%emt 0:00:55]} 8. f3 {[%emt 0:00:34]} Be7 {[%emt 0:01:00]} 9. Nb3 {[%emt 0:00:47]} O-O {[%emt 0:05:18]} 10. O-O-O {[%emt 0:00:26]} b5 {[%emt 0:00:37]} 11. h4 {[%emt 0:01:16]} Bb4 {[%emt 0:03:51]} 12. g4 {[%emt 0:01:41]} Ne5 {[%emt 0:02:49]} 13. Bf4 {[%emt 0:01:19]} d6 {[%emt 0:03:48]} 14. Bxe5 {[%emt 0:00:36]} dxe5 {[%emt 0:00:24]} 15. h5 {[%emt 0:00:43]} Bxc3 {[%emt 0:01:37]} 16. bxc3 {[%emt 0:00:51]} Bb7 {[%emt 0:04:24]} 17. h6 {[%emt 0:01:42]} g6 {[%emt 0:04:42]} 18. Qg5 {[%emt 0:03:37]} Qe7 {[%emt 0:01:13]} 19. Na5 {[%emt 0:00:24]} Rab8 {[%emt 0:04:38]} 20. Kb1 {[%emt 0:02:58]} Rfd8 {[%emt 0:03:04]} 21. Be2 {[%emt 0:01:26]} Ba8 {[%emt 0:06:49]} 22. Qxe5 {[%emt 0:03:36]} Ne8 {[%emt 0:01:28]} 23. Rxd8 {[%emt 0:07:38]} Rxd8 {[%emt 0:01:33]} 24. g5 {[%emt 0:01:48]} Rc8 {[%emt 0:03:50]} 25. Kb2 {[%emt 0:03:43]} b4 {[%emt 0:02:57]} 26. c4 {[%emt 0:02:52]} Rc5 {[%emt 0:00:52]} 27. Qb8 {[%emt 0:01:40]} Rxa5 {[%emt 0:00:55]} 28. Qxa8 {[%emt 0:00:21]} b3 {[%emt 0:00:41]} 29. cxb3 {[%emt 0:03:13]} Qa3+ {[%emt 0:00:33]} 30. Kc3 {[%emt 0:02:11]} Kf8 {[%emt 0:02:21]} 31. Rd1 {[%emt 0:01:48]} Rxg5 {[%emt 0:01:14]} 32. Rd8 {[%emt 0:00:47]} Qe7 {[%emt 0:00:09]} 33. Kb2 {[%emt 0:01:54]} Rg2 {[%emt 0:04:13]} 34. Rd2 {[%emt 0:00:15]} Qg5 {[%emt 0:02:18]} 35. Rc2 {[%emt 0:00:17]} Qf6+ {[%emt 0:01:53]} 36. Ka3 {[%emt 0:53:37]} Qe7+ {[%emt 0:35:18]} 37. c5 1/2-1/2

[Event "FIDE WCCC Open-08 2024"]
[Site "Montesilvano"]
[Date "2024.11.25"]
[Round "10.43"]
[White "Xin, Andrew M."]
[Black "Kiss, Lorinc Istvan"]
[Result "0-1"]
[Annotator "NA RC"]
[ECO "D04"]
[WhiteElo "1546"]
[BlackElo "1501"]
[PlyCount "54"]
[EventDate "2024.11.18"]
[EventType "swiss"]
[EventCountry "ITA"]
[SourceTitle "playchess.com"]
[Source "ChessBase"]
[SourceQuality "1"]
[TimeControl "5400+30"]

1. d4 {[%emt 0:00:02]} d5 {[%emt 0:00:08]} 2. Nf3 {[%emt 0:00:05]} Nf6 {[%emt 0:01:51]} 3. e3 {[%emt 0:00:14]} c5 {[%emt 0:02:31]} 4. b3 {[%emt 0:00:09]} cxd4 {[%emt 0:02:30]} 5. exd4 {[%emt 0:00:06]} Nc6 {[%emt 0:02:30]} 6. Bd3 {[%emt 0:00:15]} Bg4 {[%emt 0:02:30]} 7. Bb2 {[%emt 0:00:33]} e6 {[%emt 0:00:55]} 8. Nbd2 {[%emt 0:00:11]} Bd6 {[%emt 0:00:37]} 9. a3 {[%emt 0:00:15]} O-O {[%emt 0:01:14]} 10. O-O {[%emt 0:00:38]} Qc7 {[%emt 0:01:55]} 11. c4 {[%emt 0:00:42]} Bxh2+ {[%emt 0:01:46]} 12. Kh1 {[%emt 0:01:08]} Bf4 {[%emt 0:03:48]} 13. Qc2 {[%emt 0:00:59]} Rac8 {[%emt 0:03:16]} 14. g3 {[%emt 0:01:12]} Bh6 {[%emt 0:02:03]} 15. Ne5 {[%emt 0:01:27]} Nxe5 {[%emt 0:03:42]} 16. dxe5 {[%emt 0:00:44]} dxc4 {[%emt 0:03:01]} 17. bxc4 {[%emt 0:01:00]} Bxd2 {[%emt 0:01:27]} 18. exf6 {[%emt 0:03:07]} Bh6 {[%emt 0:04:53]} 19. Bxh7+ {[%emt 0:01:26]} Kh8 {[%emt 0:00:32]} 20. fxg7+ {[%emt 0:00:39]} Bxg7 {[%emt 0:00:20]} 21. Bxg7+ {[%emt 0:00:22]} Kxg7 {[%emt 0:00:19]} 22. Bd3 {[%emt 0:00:37]} Rh8+ {[%emt 0:00:44]} 23. Kg1 {[%emt 0:00:29]} Bf3 {[%emt 0:00:24]} 24. Qc3+ {[%emt 0:02:22]} f6 {[%emt 0:00:20]} 25. Bh7 {[%emt 0:10:30]} Qc6 {[%emt 0:01:11]} 26. Qxf3 {[%emt 0:07:28]} Qxf3 {[%emt 0:00:12]} 27. Be4 {[%emt 0:00:09]} Rh1# {[%emt 0:00:14]} 0-1

[Event "FIDE WCCC Open-08 2024"]
[Site "Montesilvano"]
[Date "2024.11.25"]
[Round "10.44"]
[White "Juzbasic, Marul"]
[Black "Smilga, Olivers"]
[Result "1-0"]
[Annotator "NA RC"]
[ECO "B30"]
[WhiteElo "1726"]
[BlackElo "1439"]
[PlyCount "75"]
[EventDate "2024.11.18"]
[EventType "swiss"]
[EventCountry "ITA"]
[SourceTitle "playchess.com"]
[Source "ChessBase"]
[SourceQuality "1"]
[TimeControl "5400+30"]

1. e4 {[%emt 0:00:02]} c5 {[%emt 0:00:07]} 2. Nf3 {[%emt 0:00:05]} g6 {[%emt 0:00:10]} 3. Bc4 {[%emt 0:00:11]} Nc6 {[%emt 0:06:19]} 4. O-O {[%emt 0:02:44]} d6 {[%emt 0:05:31]} 5. Re1 {[%emt 1:29:58]} Bg7 {[%emt 0:02:57]} 6. c3 {[%emt 0:00:30]} Bg4 {[%emt 0:07:44]} 7. h3 {[%emt 0:00:00]} Bxf3 {[%emt 0:02:57]} 8. Qxf3 {[%emt 0:00:00]} Nf6 {[%emt 0:03:34]} 9. d3 {[%emt 0:00:00]} O-O {[%emt 0:03:04]} 10. Nd2 {[%emt 0:02:00]} Ne5 {[%emt 1:03:07]} 11. Qe3 {[%emt 0:00:30]} a6 {[%emt 0:00:00]} 12. Bb3 {[%emt 0:00:00]} b5 {[%emt 0:00:00]} 13. d4 {[%emt 0:01:00]} cxd4 {[%emt 0:00:00]} 14. cxd4 {[%emt 0:00:30]} Nc6 {[%emt 0:00:00]} 15. f4 {[%emt 0:00:00]} Nd7 {[%emt 0:00:00]} 16. Nf3 {[%emt 0:01:00]} Qb6 {[%emt 0:00:00]} 17. e5 {[%emt 0:00:00]} dxe5 {[%emt 0:00:00]} 18. fxe5 {[%emt 0:00:00]} Na5 {[%emt 0:00:00]} 19. Kh1 {[%emt 0:01:30]} Nxb3 {[%emt 0:00:00]} 20. axb3 {[%emt 0:00:00]} Rac8 {[%emt 0:00:00]} 21. Bd2 {[%emt 0:01:00]} h6 {[%emt 0:00:00]} 22. Bb4 {[%emt 0:00:00]} Rfe8 {[%emt 0:00:00]} 23. Qe4 {[%emt 0:01:00]} Qc6 {[%emt 0:00:00]} 24. d5 {[%emt 0:00:00]} Qc2 {[%emt 0:01:07]} 25. Qe3 {[%emt 0:00:00]} Qc7 {[%emt 0:01:09]} 26. Rac1 {[%emt 0:00:00]} Qb7 {[%emt 0:00:48]} 27. e6 {[%emt 0:00:00]} fxe6 {[%emt 0:01:45]} 28. Qxe6+ {[%emt 0:00:00]} Kh7 {[%emt 0:00:16]} 29. Rxc8 {[%emt 0:00:00]} Qxc8 {[%emt 0:00:41]} 30. Qf7 {[%emt 0:00:00]} Rf8 {[%emt 0:02:37]} 31. Qxe7 {[%emt 0:00:00]} Qd8 {[%emt 0:00:34]} 32. d6 {[%emt 0:00:00]} Qxe7 {[%emt 0:00:41]} 33. dxe7 {[%emt 0:00:00]} Re8 {[%emt 0:00:12]} 34. Rd1 {[%emt 0:00:00]} Nf6 {[%emt 0:00:47]} 35. Rd8 {[%emt 0:00:00]} a5 {[%emt 0:00:24]} 36. Bc5 {[%emt 0:00:00]} a4 {[%emt 0:00:39]} 37. Nd4 {[%emt 0:00:00]} axb3 {[%emt 0:00:48]} 38. Nxb5 {[%emt 0:00:00]} 1-0

[Event "FIDE WCCC Open-08 2024"]
[Site "Montesilvano"]
[Date "2024.11.25"]
[Round "10.45"]
[White "Kuncoro, Harvey"]
[Black "Bisetto, Alessandro Federico"]
[Result "0-1"]
[Annotator "NA RC"]
[ECO "C58"]
[WhiteElo "1432"]
[BlackElo "1671"]
[PlyCount "130"]
[EventDate "2024.11.18"]
[EventType "swiss"]
[EventCountry "ITA"]
[SourceTitle "playchess.com"]
[Source "ChessBase"]
[SourceQuality "1"]
[TimeControl "5400+30"]

1. e4 {[%emt 0:00:05]} e5 {[%emt 0:00:06]} 2. Nf3 {[%emt 0:00:08]} Nc6 {[%emt 0:00:03]} 3. Bc4 {[%emt 0:00:09]} Nf6 {[%emt 0:00:06]} 4. Ng5 {[%emt 0:00:05]} d5 {[%emt 0:00:05]} 5. exd5 {[%emt 0:00:12]} Na5 {[%emt 0:00:09]} 6. Bb5+ {[%emt 0:00:10]} c6 {[%emt 0:00:26]} 7. dxc6 {[%emt 0:00:07]} bxc6 {[%emt 0:00:04]} 8. Qf3 {[%emt 0:00:11]} Be7 {[%emt 0:00:05]} 9. h3 {[%emt 0:04:47]} Bb7 {[%emt 0:01:55]} 10. Ba4 {[%emt 0:00:28]} O-O {[%emt 0:00:21]} 11. O-O {[%emt 0:00:55]} Nd5 {[%emt 0:00:10]} 12. Ne4 {[%emt 0:01:49]} f5 {[%emt 0:00:37]} 13. Ng3 {[%emt 0:07:12]} e4 {[%emt 0:00:26]} 14. Qe2 {[%emt 0:09:41]} Rf6 {[%emt 0:02:05]} 15. b4 {[%emt 0:03:00]} Nxb4 {[%emt 0:03:39]} 16. Bb2 {[%emt 0:00:24]} Ba6 {[%emt 0:02:33]} 17. Bxf6 {[%emt 0:12:28]} Bxf6 {[%emt 0:06:23]} 18. Qxa6 {[%emt 0:07:07]} Nxa6 {[%emt 0:00:07]} 19. c3 {[%emt 0:07:54]} Nc5 {[%emt 0:00:49]} 20. Bc2 {[%emt 0:00:31]} g6 {[%emt 0:01:32]} 21. f3 {[%emt 0:08:42]} Bh4 {[%emt 0:01:14]} 22. Ne2 {[%emt 0:00:25]} Nc4 {[%emt 0:00:37]} 23. Nd4 {[%emt 0:00:28]} Qb6 {[%emt 0:01:22]} 24. Kh1 {[%emt 0:01:24]} Qb8 {[%emt 0:01:56]} 25. Nb3 {[%emt 0:01:03]} Be7 {[%emt 0:00:49]} 26. fxe4 {[%emt 0:01:15]} Nxe4 {[%emt 0:00:27]} 27. Bxe4 {[%emt 0:02:11]} fxe4 {[%emt 0:02:02]} 28. Re1 {[%emt 0:04:51]} Qg3 {[%emt 0:00:49]} 29. Rxe4 {[%emt 0:02:10]} Bd6 {[%emt 0:01:35]} 30. Kg1 {[%emt 0:04:51]} Rf8 {[%emt 0:00:31]} 31. Rf4 {[%emt 0:04:51]} Bxf4 {[%emt 1:12:57]} 32. Nd4 {[%emt 0:00:36]} Be3+ {[%emt 0:00:00]} 33. dxe3 {[%emt 0:00:42]} Qe1+ {[%emt 0:00:00]} 34. Kh2 {[%emt 0:00:12]} Nxe3 {[%emt 0:00:00]} 35. Nc2 {[%emt 0:00:59]} Nxc2 {[%emt 0:00:00]} 36. Na3 {[%emt 0:00:18]} Qxa1 {[%emt 0:00:00]} 37. Nxc2 {[%emt 0:00:09]} Rf1 {[%emt 0:00:00]} 38. Ne3 {[%emt 0:00:24]} Rh1+ {[%emt 0:00:00]} 39. Kg3 {[%emt 0:00:39]} Qe1+ {[%emt 0:00:00]} 40. Kf4 {[%emt 0:00:15]} Qxe3+ {[%emt 0:00:00]} 41. Kxe3 {[%emt 0:00:13]} Ra1 {[%emt 0:00:00]} 42. g4 {[%emt 0:00:11]} Rxa2 {[%emt 0:00:00]} 43. h4 {[%emt 0:00:15]} Rh2 {[%emt 0:00:00]} 44. h5 {[%emt 0:00:35]} gxh5 {[%emt 0:00:00]} 45. g5 {[%emt 0:00:10]} Rh3+ {[%emt 0:00:00]} 46. Kd4 {[%emt 0:00:10]} Rxc3 {[%emt 0:00:00]} 47. Kxc3 {[%emt 0:00:12]} Kg7 {[%emt 0:00:00]} 48. Kc4 {[%emt 0:00:12]} Kg6 {[%emt 0:00:00]} 49. Kc5 {[%emt 0:00:06]} Kxg5 {[%emt 0:00:00]} 50. Kxc6 {[%emt 0:00:06]} h4 {[%emt 0:00:00]} 51. Kc5 {[%emt 0:00:14]} a5 {[%emt 0:00:00]} 52. Kc4 {[%emt 0:00:17]} a4 {[%emt 0:00:00]} 53. Kc3 {[%emt 0:00:14]} a3 {[%emt 0:00:00]} 54. Kc2 {[%emt 0:00:13]} a2 {[%emt 0:00:00]} 55. Kb2 {[%emt 0:00:06]} a1=Q+ {[%emt 0:00:00]} 56. Kxa1 {[%emt 0:00:13]} h3 {[%emt 0:00:00]} 57. Kb1 {[%emt 0:00:10]} h2 {[%emt 0:00:00]} 58. Kc2 {[%emt 0:00:00]} h1=Q {[%emt 0:00:00]} 59. Kc3 {[%emt 0:00:00]} Qd5 {[%emt 0:00:00]} 60. Kb4 {[%emt 0:00:54]} h5 {[%emt 0:00:00]} 61. Ka3 {[%emt 0:00:53]} h4 {[%emt 0:00:00]} 62. Kb2 {[%emt 0:00:09]} h3 {[%emt 0:00:00]} 63. Kc2 {[%emt 0:00:14]} h2 {[%emt 0:00:00]} 64. Kc3 {[%emt 0:00:15]} h1=Q {[%emt 0:00:00]} 65. Kb4 {[%emt 0:00:16]} Qc1 {[%emt 0:00:00]} 0-1

[Event "FIDE WCCC Open-08 2024"]
[Site "Montesilvano"]
[Date "2024.11.25"]
[Round "10.46"]
[White "Kakagiannis, Stylianos"]
[Black "Kortmann, Pedro Reck"]
[Result "1/2-1/2"]
[Annotator "NA RC"]
[ECO "B45"]
[WhiteElo "1423"]
[BlackElo "1630"]
[PlyCount "51"]
[EventDate "2024.11.18"]
[EventType "swiss"]
[EventCountry "ITA"]
[SourceTitle "playchess.com"]
[Source "ChessBase"]
[SourceQuality "1"]
[TimeControl "5400+30"]

1. e4 {[%emt 0:00:02]} c5 {[%emt 0:00:06]} 2. Nf3 {[%emt 0:00:07]} e6 {[%emt 0:00:23]} 3. d4 {[%emt 0:00:15]} cxd4 {[%emt 0:00:09]} 4. Nxd4 {[%emt 0:00:12]} Nf6 {[%emt 0:00:17]} 5. Nc3 {[%emt 0:01:12]} Nc6 {[%emt 0:00:21]} 6. Be2 {[%emt 0:02:11]} Bb4 {[%emt 0:02:15]} 7. Bf3 {[%emt 0:10:38]} h6 {[%emt 0:02:48]} 8. O-O {[%emt 0:05:13]} O-O {[%emt 0:01:15]} 9. Nce2 {[%emt 0:07:50]} d6 {[%emt 0:02:47]} 10. c3 {[%emt 0:04:40]} Bc5 {[%emt 0:00:55]} 11. Re1 {[%emt 0:16:38]} Ne5 {[%emt 0:01:11]} 12. Ng3 {[%emt 0:08:30]} Nxf3+ {[%emt 1:24:03]} 13. Qxf3 {[%emt 0:10:44]} Re8 {[%emt 0:00:00]} 14. Bd2 {[%emt 0:07:43]} Bd7 {[%emt 0:00:00]} 15. Rad1 {[%emt 0:06:42]} b5 {[%emt 0:00:00]} 16. b4 {[%emt 0:03:10]} Bb6 {[%emt 0:00:00]} 17. Be3 {[%emt 0:01:55]} e5 {[%emt 0:00:00]} 18. Ndf5 {[%emt 0:00:09]} Bxe3 {[%emt 0:00:00]} 19. Rxe3 {[%emt 0:00:15]} Re6 {[%emt 0:00:00]} 20. h3 {[%emt 0:00:36]} a5 {[%emt 0:00:00]} 21. a3 {[%emt 0:01:44]} axb4 {[%emt 0:00:00]} 22. cxb4 {[%emt 0:00:28]} Ra6 {[%emt 0:00:00]} 23. Red3 {[%emt 0:00:31]} Be8 {[%emt 0:00:00]} 24. Nh1 {[%emt 0:01:50]} Kh7 {[%emt 0:00:00]} 25. Ne3 {[%emt 0:02:02]} Bc6 {[%emt 0:00:00]} 26. Ng3 {[%emt 0:01:41]} 1/2-1/2

[Event "FIDE WCCC Open-08 2024"]
[Site "Montesilvano"]
[Date "2024.11.25"]
[Round "10.47"]
[White "Chanishvili, Noa"]
[Black "Senthilkumar, Tharveen"]
[Result "1/2-1/2"]
[Annotator "NA RC"]
[ECO "D00"]
[WhiteElo "1553"]
[BlackElo "1411"]
[PlyCount "100"]
[EventDate "2024.11.18"]
[EventType "swiss"]
[EventCountry "ITA"]
[SourceTitle "playchess.com"]
[Source "ChessBase"]
[SourceQuality "1"]
[TimeControl "5400+30"]

1. d4 {[%emt 0:00:06]} Nf6 {[%emt 0:00:12]} 2. Nc3 {[%emt 0:00:24]} d5 {[%emt 0:00:13]} 3. Bf4 {[%emt 0:03:12]} c6 {[%emt 0:00:57]} 4. e3 {[%emt 0:01:04]} g6 {[%emt 0:00:59]} 5. Bd3 {[%emt 0:01:04]} Bg7 {[%emt 0:00:20]} 6. h3 {[%emt 0:00:59]} O-O {[%emt 0:00:29]} 7. Nf3 {[%emt 1:27:11]} b6 {[%emt 0:01:33]} 8. O-O {[%emt 0:00:00]} Ba6 {[%emt 0:00:59]} 9. Bxa6 {[%emt 0:00:00]} Nxa6 {[%emt 0:00:36]} 10. Qe2 {[%emt 0:00:00]} Nc7 {[%emt 0:00:56]} 11. Rfe1 {[%emt 0:00:00]} Ne6 {[%emt 0:00:43]} 12. Bh2 {[%emt 0:00:00]} Re8 {[%emt 0:01:18]} 13. Rad1 {[%emt 0:00:00]} b5 {[%emt 0:02:43]} 14. a3 {[%emt 0:00:00]} a5 {[%emt 0:01:52]} 15. b4 {[%emt 0:00:00]} axb4 {[%emt 0:02:24]} 16. axb4 {[%emt 0:00:00]} Nf8 {[%emt 0:06:15]} 17. Ra1 {[%emt 0:00:00]} N8d7 {[%emt 0:01:15]} 18. Qd1 {[%emt 0:00:00]} Nb6 {[%emt 0:01:01]} 19. Nd2 {[%emt 0:00:00]} Nfd7 {[%emt 0:03:11]} 20. Rxa8 {[%emt 0:00:00]} Qxa8 {[%emt 0:00:25]} 21. Qa1 {[%emt 0:00:00]} e5 {[%emt 0:01:36]} 22. Ne2 {[%emt 0:00:00]} exd4 {[%emt 0:01:19]} 23. Nxd4 {[%emt 0:00:00]} Qxa1 {[%emt 0:01:07]} 24. Rxa1 {[%emt 0:00:00]} Bxd4 {[%emt 0:00:24]} 25. exd4 {[%emt 0:00:00]} Re2 {[%emt 0:01:01]} 26. Rd1 {[%emt 0:00:00]} Nc4 {[%emt 0:00:47]} 27. Nxc4 {[%emt 0:00:00]} bxc4 {[%emt 0:00:14]} 28. Rc1 {[%emt 0:00:00]} c3 {[%emt 0:00:48]} 29. Bf4 {[%emt 0:00:00]} Re4 {[%emt 0:01:59]} 30. Be3 {[%emt 0:00:00]} f5 {[%emt 0:00:47]} 31. g3 {[%emt 0:00:00]} Nb6 {[%emt 0:01:39]} 32. Kg2 {[%emt 0:00:00]} Nc4 {[%emt 0:00:58]} 33. Kf3 {[%emt 0:00:00]} Nd2+ {[%emt 0:00:58]} 34. Ke2 {[%emt 0:00:00]} g5 {[%emt 0:03:36]} 35. f3 {[%emt 0:00:00]} Re8 {[%emt 0:00:48]} 36. Kf2 {[%emt 0:00:00]} h6 {[%emt 0:02:13]} 37. Bxd2 {[%emt 0:00:00]} cxd2 {[%emt 0:00:59]} 38. Rd1 {[%emt 0:00:00]} Rb8 {[%emt 0:00:19]} 39. c3 {[%emt 0:00:00]} Ra8 {[%emt 0:00:23]} 40. Rxd2 {[%emt 0:00:00]} Ra3 {[%emt 0:00:11]} 41. Rc2 {[%emt 0:00:00]} Kf7 {[%emt 0:00:09]} 42. Ke3 {[%emt 0:00:00]} Ke6 {[%emt 0:00:12]} 43. f4 {[%emt 0:00:00]} g4 {[%emt 0:00:18]} 44. hxg4 {[%emt 0:00:00]} fxg4 {[%emt 0:00:12]} 45. Kd3 {[%emt 0:00:00]} Kf5 {[%emt 0:00:10]} 46. Re2 {[%emt 0:00:00]} h5 {[%emt 0:00:18]} 47. Re5+ {[%emt 0:00:00]} Kg6 {[%emt 0:00:12]} 48. Re6+ {[%emt 0:00:00]} Kf5 {[%emt 0:00:08]} 49. Rxc6 {[%emt 0:00:00]} h4 {[%emt 0:00:12]} 50. gxh4 {[%emt 0:00:00]} Kxf4 {[%emt 1:03:12]} 1/2-1/2